bitfinex-derivatives/quotes_SOLF0:USTF0_20241120
["timestamp","ask_amount","ask_price","bid_price","bid_amount"]
[1732070967120,2.7,233.69,233.59,12.69155284]
[1732070968125,10.55445284,233.68,233.58,1.3121]
[1732070968326,10.55445284,233.68,233.54,1.238]
[1732070968523,2.7,233.69,233.58,10.55445284]
[1732070968826,2.1365,233.66,233.58,10.55445284]
[1732070969126,2.1375,233.56,233.48,2.1381]
[1732070969321,2.7,233.61,233.51,10.55445284]
[1732070969521,2.7,233.66,233.54,10.55445284]
[1732070970722,2.1371,233.6,233.54,10.55445284]
[1732070971028,2.1371,233.6,233.54,12.69205284]
[1732070972825,2.1366,233.66,233.57,10.55445284]
[1732070973025,2.1366,233.66,233.6,10.55445284]
[1732070973928,11.75995284,233.75,233.6,10.55445284]
[1732070974126,3.34659127,233.74,233.63,10.55445284]
[1732070974325,2.7,233.74,233.63,10.55445284]
[1732070974729,3.9055,233.75,233.63,10.55445284]
[1732070974923,2.7,233.75,233.63,10.55445284]
[1732070976334,2.1361,233.71,233.63,12.69125284]
[1732070976529,2.7,233.75,233.63,12.69125284]
[1732070976728,12.53775284,233.81,233.66,10.55445284]
[1732070976928,2.1358,233.74,233.69,10.55445284]
[1732070977124,2.7,233.81,233.69,10.55445284]
[1732070977330,2.1356,233.77,233.71,2.136]
[1732070977526,2.1356,233.77,233.69,10.55445284]
[1732070978233,2.1356,233.76,233.69,12.69065284]
[1732070978433,2.7,233.81,233.69,10.55445284]
[1732070979632,2.7,233.81,233.69,12.69065284]
[1732070981236,2.1356,233.76,233.69,12.69065284]
[1732070982037,2.7,233.81,233.69,12.69065284]
[1732070982236,2.7,233.81,233.7,2.1361]
[1732070982438,2.7,233.81,233.69,10.55445284]
[1732070982735,2.1355,233.78,233.7,2.1361]
[1732070982935,2.7,233.85,233.72,10.55445284]
[1732070983147,0.64686938,233.84,233.72,10.55445284]
[1732070983343,2.1352,233.81,233.74,2.1358]
[1732070983755,2.7,233.85,233.74,2.1358]
[1732070984053,407.2832988,233.91,233.78,10.55445284]
[1732070984244,3.34674672,233.9,233.78,10.55445284]
[1732070984460,0.64654574,233.89,233.78,10.55445284]
[1732070985355,2.1349,233.84,233.78,10.55445284]
[1732070986455,2.1349,233.84,233.78,12.68985284]
[1732070986754,2.7,233.9,233.78,10.55445284]
[1732070986947,2.135,233.83,233.78,10.55445284]
[1732070987450,10.55445284,233.93,233.76,2.7]
[1732070987645,2.7,233.92,233.78,10.55445284]
[1732070987863,0.64637905,233.91,233.78,10.55445284]
[1732070988054,0.64637905,233.91,233.8,2.1352]
[1732070988249,0.64637905,233.91,233.78,10.55445284]
[1732070988750,2.7,233.92,233.81,10.55445284]
[1732070988949,2.7,233.92,233.82,2.4986]
[1732070989257,2.1346,233.88,233.82,2.4986]
[1732070990251,2.1346,233.88,233.82,4.6337]
[1732070991256,2.7,233.94,233.82,2.4986]
[1732070991559,35.77898107,234.0,233.87,10.55445284]
[1732070991762,3.34633382,233.99,233.87,12.68905284]
[1732070991962,2.1341,233.93,233.87,12.68905284]
[1732070992156,3.34633382,233.99,233.87,12.68905284]
[1732070992763,2.1343,233.93,233.87,12.68905284]
[1732070993159,0.64633382,233.99,233.88,2.7]
[1732070993360,0.64633382,233.99,233.9,10.55445284]
[1732070994259,2.1339,233.97,233.91,2.1344]
[1732070994456,0.64633382,233.99,233.9,10.55445284]
[1732070994857,2.1339,233.97,233.92,2.1343]
[1732070995257,0.64633382,233.99,233.9,10.55445284]
[1732070995859,2.1342,233.94,233.9,10.55445284]
[1732070996163,0.64633382,233.99,233.9,10.55445284]
[1732070996862,2.1342,233.94,233.9,10.55445284]
[1732070997856,2.1342,233.94,233.87,2.1348]
[1732070997857,2.7,233.98,233.84,10.55445284]
[1732070998754,10.55445284,233.96,233.82,2.4986]
[1732070999564,2.1349,233.86,233.82,2.4986]
[1732071000158,2.1347,233.88,233.82,2.4986]
[1732071000358,2.7,233.92,233.82,4.6338]
[1732071000764,2.1349,233.86,233.82,2.4986]
[1732071001059,2.7,233.92,233.82,2.4986]
[1732071001261,2.135,233.85,233.82,2.4986]
[1732071001963,2.7,233.92,233.82,2.4986]
[1732071003363,13.25445284,233.92,233.82,2.4986]
[1732071003564,13.25445284,233.92,233.78,10.55445284]
[1732071003759,2.1347,233.88,233.78,10.55445284]
[1732071003981,2.7,233.92,233.81,10.55445284]
[1732071004758,2.1349,233.86,233.81,10.55445284]
[1732071004959,2.7,233.92,233.81,10.55445284]
[1732071005559,2.1349,233.86,233.81,10.55445284]
[1732071005765,13.25445284,233.92,233.78,10.55445284]
[1732071006674,2.1347,233.88,233.78,10.55445284]
[1732071006891,13.25445284,233.92,233.78,10.55445284]
[1732071007371,2.1352,233.82,233.78,10.55445284]
[1732071007874,2.08492092,233.94,233.77,1.2905]
[1732071007875,2.7,233.86,233.77,1.2905]
[1732071008065,2.7,233.86,233.75,10.55445284]
[1732071008465,13.25445284,233.86,233.74,2.4951]
[1732071008869,2.1352,233.83,233.74,2.4951]
[1732071009071,13.25445284,233.86,233.74,2.4951]
[1732071009767,0.64620446,233.85,233.74,2.4951]
[1732071010878,13.25445284,233.86,233.74,2.4951]
[1732071011077,0.64654154,233.85,233.74,2.4951]
[1732071011673,10.55445284,233.86,233.74,2.4951]
[1732071011870,3.34657382,233.85,233.74,2.4951]
[1732071012074,2.7,233.85,233.74,2.4951]
[1732071012275,0.64663315,233.84,233.74,2.4951]
[1732071012472,2.1357,233.77,233.74,2.4951]
[1732071015076,10.55445284,233.89,233.74,2.4951]
[1732071015276,2.7,233.88,233.74,2.4951]
[1732071015682,2.7,233.88,233.75,2.1359]
[1732071015683,2.1354,233.8,233.75,2.1359]
[1732071015883,174.5499852,233.92,233.76,10.55445284]
[1732071016079,3.34624547,233.91,233.76,10.55445284]
[1732071016376,2.1355,233.8,233.76,10.55445284]
[1732071016579,10.55445284,233.9,233.76,10.55445284]
[1732071016979,2.1349,233.86,233.76,12.69025284]
[1732071017274,10.55445284,233.9,233.76,10.55445284]
[1732071017476,2.1349,233.86,233.76,10.55445284]
[1732071017778,10.55445284,233.9,233.76,10.55445284]
[1732071019278,2.1349,233.86,233.76,10.55445284]
[1732071019476,185.10443804,233.93,233.79,10.55445284]
[1732071019679,18.7266296,233.92,233.79,10.55445284]
[1732071020000,10.8152467,233.91,233.82,10.55445284]
[1732071020179,174.5499852,233.94,233.85,10.55445284]
[1732071020483,174.5499852,233.96,233.85,10.55445284]
[1732071020783,18.75053445,233.95,233.85,10.55445284]
[1732071021082,8.12556144,233.94,233.85,10.55445284]
[1732071021383,32.51333282,233.98,233.85,10.55445284]
[1732071021578,18.75556482,233.97,233.85,10.55445284]
[1732071021784,8.77457269,233.96,233.85,12.68935284]
[1732071021981,2.7,233.98,233.85,12.68935284]
[1732071022178,8.77752187,233.97,233.86,2.4721]
[1732071022377,0.64645816,233.97,233.86,2.4721]
[1732071023282,2.1345,233.9,233.86,2.4721]
[1732071024186,0.64645816,233.97,233.88,10.55445284]
[1732071024386,0.64645816,233.97,233.88,13.23445284]
[1732071024884,2.1342,233.93,233.88,13.23445284]
[1732071025683,0.64645816,233.97,233.88,13.23445284]
[1732071026582,0.64645816,233.97,233.86,2.4721]
[1732071028180,0.64645816,233.97,233.88,10.55445284]
[1732071028380,2.1343,233.93,233.88,10.55445284]
[1732071029286,2.1342,233.94,233.88,10.55445284]
[1732071029495,0.64645816,233.97,233.89,2.68]
[1732071029782,0.64645816,233.97,233.94,10.55445284]
[1732071030380,8.13644624,234.02,233.94,10.55445284]
[1732071030577,9.99108527,234.01,233.94,10.55445284]
[1732071030779,8.13644624,234.0,233.94,10.55445284]
[1732071031084,8.13644624,234.0,233.91,10.55445284]
[1732071031287,3.9701,234.05,233.91,10.55445284]
[1732071031588,18.12554763,234.04,233.91,10.55445284]
[1732071031888,18.7718941,234.03,233.92,2.1343]
[1732071032085,8.13557658,234.02,233.92,2.1343]
[1732071032286,3.9701,234.05,233.92,2.1343]
[1732071032483,18.76938557,234.04,233.92,2.1343]
[1732071032684,18.12303527,234.03,233.92,2.1343]
[1732071032881,8.13445827,234.02,233.92,2.1343]
[1732071033082,8.13445827,234.04,233.92,2.1343]
[1732071033383,3.9701,234.05,233.92,2.1343]
[1732071033384,2.1338,233.98,233.92,2.1343]
[1732071034188,2.1339,233.97,233.92,2.1343]
[1732071036084,10.55445284,234.02,233.86,2.4721]
[1732071036287,18.75564399,234.01,233.87,2.68]
[1732071036477,10.62722159,234.0,233.87,4.8147]
[1732071036683,8.12843126,233.99,233.87,2.68]
[1732071036884,10.55445284,234.02,233.86,15.70655284]
[1732071037083,10.55445284,233.99,233.86,2.4721]
[1732071037286,2.68,233.98,233.86,2.4721]
[1732071039387,0.6464674,233.97,233.86,2.4721]
[1732071039891,2.68,233.98,233.86,2.4721]
[1732071040093,10.55445284,233.96,233.81,13.23445284]
[1732071040288,2.11400881,233.95,233.81,13.23445284]
[1732071041086,11.81635284,233.96,233.81,10.55445284]
[1732071041282,10.55445284,233.93,233.8,2.68]
[1732071041483,4.76858772,233.92,233.79,1.2637]
[1732071042187,2.1351,233.84,233.79,1.2637]
[1732071042488,2.68,233.92,233.81,10.55445284]
[1732071042694,2.68,233.92,233.85,10.55445284]
[1732071042888,1.2619,233.96,233.85,10.55445284]
[1732071043194,0.64619591,233.95,233.85,10.55445284]
[1732071043394,1.2619,233.96,233.85,10.55445284]
[1732071043594,2.1346,233.9,233.85,10.55445284]
[1732071043895,8.12725829,233.95,233.85,10.55445284]
[1732071044192,2.1346,233.89,233.85,10.55445284]
[1732071047391,2.1344,233.91,233.85,12.68945284]
[1732071047594,1.2619,233.96,233.85,10.55445284]
[1732071047795,0.64612195,233.95,233.85,10.55445284]
[1732071048094,8.12664244,233.97,233.85,10.55445284]
[1732071048394,0.64616353,233.96,233.85,13.23445284]
[1732071048889,2.1345,233.91,233.85,13.23445284]
[1732071050290,2.1345,233.9,233.85,15.36935284]
[1732071051896,2.68,233.98,233.85,13.23445284]
[1732071052097,2.1346,233.9,233.85,13.23445284]
[1732071052491,2.68,233.98,233.85,13.23445284]
[1732071052492,2.1341,233.95,233.85,13.23445284]
[1732071052697,2.68,233.98,233.85,13.23445284]
[1732071053016,2.1344,233.91,233.85,15.36945284]
[1732071053499,2.68,233.98,233.85,13.23445284]
[1732071053799,2.1345,233.9,233.85,13.23445284]
[1732071055702,2.1345,233.9,233.85,15.36945284]
[1732071056398,2.1346,233.89,233.85,15.36945284]
[1732071058001,2.12865812,233.91,233.79,1.2637]
[1732071058306,2.68,233.92,233.79,1.2637]
[1732071058307,13.23445284,233.92,233.79,1.2637]
[1732071058702,6.73595343,233.89,233.81,6.73595343]
[1732071059308,2.1353,233.82,233.81,6.73595343]
[1732071060313,6.73595343,233.87,233.79,7.99965343]
[1732071060814,2.15386198,233.91,233.79,1.2637]
[1732071061012,13.20547451,233.92,233.79,1.2637]
[1732071061013,2.1348,233.87,233.79,1.2637]
[1732071061209,2.10032846,233.9,233.79,1.2637]
[1732071061410,8.144391,233.91,233.79,1.2637]
[1732071061615,2.11229371,233.9,233.77,11.81297451]
[1732071061909,2.11229371,233.9,233.77,13.94867451]
[1732071062303,2.1352,233.82,233.77,11.81297451]
[1732071062504,2.11229371,233.9,233.77,11.81297451]
[1732071062708,18.14374182,233.91,233.77,11.81297451]
[1732071062905,20.91568715,233.9,233.77,11.81297451]
[1732071063107,8.14362576,233.89,233.77,11.81297451]
[1732071063305,15.33678442,233.92,233.77,11.81297451]
[1732071063507,18.79330523,233.91,233.77,11.81297451]
[1732071063711,18.79330523,233.9,233.77,11.81297451]
[1732071064012,15.33678442,233.92,233.77,11.81297451]
[1732071064213,18.79818024,233.91,233.77,11.81297451]
[1732071064408,18.15085306,233.9,233.77,11.81297451]
[1732071064613,8.14580977,233.89,233.77,11.81297451]
[1732071064808,15.33678442,233.92,233.77,11.81297451]
[1732071064809,8.14580977,233.91,233.77,11.81297451]
[1732071065013,10.65094912,233.9,233.77,11.81297451]
[1732071065312,2.1352,233.83,233.77,11.81297451]
[1732071065514,15.33678442,233.92,233.77,11.81297451]
[1732071065713,18.80059289,233.91,233.77,11.81297451]
[1732071065914,8.14843423,233.9,233.77,11.81297451]
[1732071066111,8.14843423,233.89,233.77,11.81297451]
[1732071066417,15.33678442,233.92,233.77,11.81297451]
[1732071066618,18.80138698,233.91,233.77,11.81297451]
[1732071066818,8.14841035,233.9,233.77,11.81297451]
[1732071067116,8.15078596,233.89,233.77,11.81297451]
[1732071067317,2.1352,233.83,233.77,11.81297451]
[1732071067714,0.64621297,233.91,233.8,10.52547451]
[1732071067914,2.1349,233.86,233.8,10.52547451]
[1732071068316,8.15075065,233.9,233.8,10.52547451]
[1732071068620,2.1348,233.87,233.83,10.52547451]
[1732071069124,2.1349,233.86,233.8,10.52547451]
[1732071071722,2.135,233.85,233.79,12.66097451]
[1732071073619,8.1430159,233.91,233.79,10.52547451]
[1732071073821,2.1348,233.87,233.82,10.52547451]
[1732071074218,2.1349,233.86,233.82,10.52547451]
[1732071076924,2.1344,233.92,233.85,10.52547451]
[1732071077222,2.1344,233.92,233.88,10.52547451]
[1732071077627,174.5499852,233.98,233.88,12.66017451]
[1732071077628,2.1342,233.94,233.88,12.66017451]
[1732071077830,0.64609224,233.93,233.88,12.66017451]
[1732071078018,8.1458505,233.95,233.88,12.66017451]
[1732071078218,235.4133136,234.01,233.88,10.52547451]
[1732071078219,2.1343,233.93,233.88,10.52547451]
[1732071079023,2.1346,233.9,233.86,2.4658]
[1732071080127,2.135,233.85,233.79,2.1355]
[1732071080322,10.52547451,233.92,233.76,3.9102]
[1732071080527,8.79862904,233.91,233.8,10.52547451]
[1732071080732,2.68,233.94,233.84,2.135]
[1732071080925,2.68,233.94,233.83,10.52547451]
[1732071080926,18.81168725,233.93,233.83,10.52547451]
[1732071081127,0.64604094,233.92,233.84,1.2941]
[1732071081426,18.8145528,233.92,233.84,1.2941]
[1732071081622,2.68,233.94,233.84,1.2941]
[1732071081623,18.8145528,233.91,233.84,1.2941]
[1732071081828,2.1349,233.86,233.84,1.2941]
[1732071082622,2.1349,233.86,233.85,6.73341008]
[1732071083224,2.1352,233.82,233.76,3.3659]
[1732071083529,2.1352,233.82,233.81,6.73341008]
[1732071084126,2.1354,233.81,233.77,3.9041]
[1732071084321,2.1354,233.81,233.8,6.73341008]
[1732071085020,6.73341008,233.88,233.8,6.73341008]
[1732071085225,8.15723162,233.87,233.8,6.73341008]
[1732071085430,8.15723162,233.87,233.82,6.73341008]
[1732071085632,2.1351,233.83,233.82,6.73341008]
[1732071086733,8.15713184,233.87,233.82,6.73341008]
[1732071086934,1.2642,233.93,233.86,6.73341008]
[1732071087227,1.2642,233.93,233.77,3.9041]
[1732071087228,1.2642,233.93,233.88,6.73341008]
[1732071087433,2.1346,233.89,233.88,6.73341008]
[1732071087823,18.17891645,233.91,233.88,6.73341008]
[1732071088027,8.15941233,233.9,233.88,6.73341008]
[1732071088224,8.16083713,233.89,233.88,6.73341008]
[1732071088429,2.1346,233.89,233.88,6.73341008]
[1732071088729,6.73341008,233.92,233.77,3.9041]
[1732071088929,18.18240496,233.91,233.84,6.73341008]
[1732071089130,18.18240496,233.9,233.84,6.73341008]
[1732071089332,6.73341008,233.92,233.84,6.73341008]
[1732071089530,2.1346,233.89,233.84,6.73341008]
[1732071089727,8.15512858,233.91,233.82,6.73341008]
[1732071090332,6.73341008,233.88,233.8,6.73341008]
[1732071090933,1.1899,233.93,233.77,1.2241]
[1732071090934,6.73341008,233.9,233.82,6.73341008]
[1732071091330,2.1351,233.85,233.82,6.73341008]
[1732071091728,2.1348,233.87,233.84,6.73341008]
[1732071093537,2.1349,233.86,233.84,6.73341008]
[1732071095141,8.15925602,233.9,233.82,6.73341008]
[1732071096237,10.02144419,233.89,233.82,6.73341008]
[1732071096539,8.15925602,233.88,233.83,6.73341008]
[1732071096735,2.1348,233.87,233.83,6.73341008]
[1732071096935,8.15925602,233.9,233.83,6.73341008]
[1732071097131,18.18124716,233.89,233.83,6.73341008]
[1732071097438,10.02199114,233.88,233.83,6.73341008]
[1732071097640,2.135,233.86,233.83,6.73341008]
[1732071098537,2.135,233.85,233.83,6.73341008]
[1732071099242,2.135,233.85,233.8,2.1354]
[1732071099536,6.73341008,233.89,233.77,1.2241]
[1732071099737,18.19429218,233.88,233.8,6.73341008]
[1732071099932,18.19429218,233.88,233.77,1.2241]
[1732071099933,6.73341008,233.85,233.77,1.2241]
[1732071100133,8.1654552,233.84,233.77,7.95751008]
[1732071100631,6.73341008,233.85,233.77,1.2241]
[1732071100830,6.73341008,233.85,233.64,1.2109]
[1732071100831,6.73341008,233.83,233.74,6.73341008]
[1732071101343,2.1357,233.77,233.74,6.73341008]
[1732071102041,6.73341008,233.83,233.76,6.73341008]
[1732071102242,3.9798,233.88,233.69,2.68]
[1732071102243,2.1358,233.77,233.69,2.68]
[1732071102536,2.1358,233.77,233.76,6.73341008]
[1732071104240,2.1356,233.78,233.76,6.73341008]
[1732071105234,2.135,233.85,233.78,2.1356]
[1732071105439,18.22426299,233.87,233.75,2.68]
[1732071105644,14.91309267,233.86,233.77,6.73341008]
[1732071105840,2.1354,233.8,233.77,6.73341008]
[1732071106443,6.73341008,233.86,233.77,6.73341008]
[1732071106643,6.73341008,233.86,233.79,6.73341008]
[1732071106838,8.18612097,233.85,233.79,6.73341008]
[1732071107045,2.1354,233.81,233.79,6.73341008]
[1732071109346,2.1354,233.81,233.77,6.73341008]
[1732071109844,8.18612097,233.85,233.72,4.8161]
[1732071110045,6.73341008,233.82,233.75,6.73341008]
[1732071110344,2.1356,233.78,233.75,6.73341008]
[1732071112140,2.66,233.79,233.7,0.16142]
[1732071112342,9.39341008,233.79,233.71,6.73341008]
[1732071112844,2.1362,233.71,233.7,0.16142]
[1732071116244,9.39341008,233.73,233.65,6.73341008]
[1732071116443,2.1365,233.69,233.65,6.73341008]
[1732071119450,2.66,233.73,233.65,6.73341008]
[1732071120345,2.66,233.73,233.69,6.73341008]
[1732071121244,2.1363,233.71,233.69,6.73341008]
[1732071121645,2.1361,233.73,233.69,6.73341008]
[1732071121848,3.9022,233.78,233.71,6.73341008]
[1732071122349,10.63561008,233.78,233.71,6.73341008]
[1732071122553,2.1358,233.76,233.71,6.73341008]
[1732071122743,10.63561008,233.78,233.71,6.73341008]
[1732071123150,2.136,233.74,233.71,6.73341008]
[1732071124054,2.66,233.79,233.73,6.73341008]
[1732071124246,2.66,233.81,233.73,6.73341008]
[1732071124450,2.66,233.81,233.75,6.73341008]
[1732071125046,2.1357,233.77,233.75,6.73341008]
[1732071125656,2.1354,233.81,233.75,6.73341008]
[1732071125846,2.66,233.84,233.69,2.11249925]
[1732071125847,2.66,233.84,233.78,6.73341008]
[1732071127049,9.39341008,233.84,233.76,6.73341008]
[1732071127951,2.66,233.84,233.78,6.73341008]
[1732071128255,2.1354,233.8,233.78,6.73341008]
[1732071132662,2.1354,233.81,233.78,6.73341008]
[1732071132861,2.66,233.85,233.78,6.73341008]
[1732071133567,2.1352,233.83,233.78,6.73341008]
[1732071133775,2.66,233.85,233.78,6.73341008]
[1732071134670,2.1354,233.8,233.78,6.73341008]
[1732071135273,2.1353,233.82,233.78,6.73341008]
[1732071135469,2.1353,233.82,233.8,6.73341008]
[1732071135869,2.1353,233.81,233.8,6.73341008]
[1732071136173,2.66,233.85,233.8,6.73341008]
[1732071136573,10.31032484,233.84,233.82,6.73341008]
[1732071136768,2.1351,233.84,233.82,6.73341008]
[1732071137568,2.66,233.88,233.82,6.73341008]
[1732071137569,2.1349,233.86,233.82,6.73341008]
[1732071137776,10.31155465,233.86,233.84,6.73341008]
[1732071137973,2.1349,233.86,233.84,6.73341008]
[1732071138374,10.31181717,233.86,233.84,6.73341008]
[1732071138675,2.1349,233.86,233.84,6.73341008]
[1732071139675,10.31294636,233.86,233.84,6.73341008]
[1732071139873,2.1349,233.86,233.84,6.73341008]
[1732071140377,2.135,233.85,233.84,6.73341008]
[1732071142176,18.22548983,233.9,233.84,6.73341008]
[1732071142377,2.1349,233.87,233.84,6.73341008]
[1732071142978,2.1349,233.87,233.86,6.73341008]
[1732071143278,6.73341008,233.88,233.79,1.2168]
[1732071143583,8.82424708,233.87,233.81,6.73341008]
[1732071143876,6.73341008,233.9,233.81,6.73341008]
[1732071144082,18.85973305,233.89,233.81,6.73341008]
[1732071144276,8.1741401,233.88,233.81,6.73341008]
[1732071144481,6.73341008,233.9,233.81,6.73341008]
[1732071144680,18.85871797,233.89,233.81,6.73341008]
[1732071144978,8.17372062,233.88,233.81,6.73341008]
[1732071145184,6.73341008,233.9,233.81,6.73341008]
[1732071145483,2.1351,233.84,233.81,6.73341008]
[1732071147285,8.16313801,233.89,233.83,6.73341008]
[1732071147580,2.135,233.85,233.83,6.73341008]
[1732071148383,2.1352,233.83,233.81,6.73341008]
[1732071148578,2.1352,233.83,233.79,1.2168]
[1732071148787,14.89713247,233.88,233.8,6.73341008]
[1732071149178,6.73341008,233.84,233.76,6.73341008]
[1732071149784,6.73341008,233.84,233.74,0.168]
[1732071149785,6.73341008,233.81,233.74,0.168]
[1732071149981,2.66,233.8,233.74,0.168]
[1732071150390,6.73341008,233.79,233.74,0.168]
[1732071152383,2.1358,233.76,233.74,0.168]
[1732071152779,2.1359,233.75,233.74,0.168]
[1732071152985,8.86931008,233.75,233.74,0.168]
[1732071153279,2.1359,233.75,233.74,0.168]
[1732071158384,2.1448009,233.83,233.74,6.90141008]
[1732071158586,17.55578352,233.82,233.74,6.90141008]
[1732071158885,8.16237344,233.81,233.74,6.90141008]
[1732071159090,2.1358,233.76,233.74,6.90141008]
[1732071159281,2.1358,233.76,233.74,0.168]
[1732071159481,2.1358,233.76,233.7,6.73341008]
[1732071159983,2.1359,233.75,233.7,6.73341008]
[1732071160182,2.1359,233.75,233.72,6.73341008]
[1732071160380,6.73341008,233.8,233.72,6.73341008]
[1732071160781,4.79487893,233.82,233.74,6.73341008]
[1732071160983,11.52828901,233.82,233.74,6.73341008]
[1732071161386,6.73341008,233.8,233.72,6.73341008]
[1732071162292,11.52828901,233.82,233.74,6.73341008]
[1732071162890,2.1358,233.76,233.74,6.73341008]
[1732071163090,9.39341008,233.82,233.74,6.73341008]
[1732071163683,11.52022843,233.82,233.74,6.73341008]
[1732071163883,8.16801857,233.81,233.74,6.73341008]
[1732071164092,2.1358,233.76,233.72,6.73341008]
[1732071164985,2.1357,233.77,233.74,6.73341008]
[1732071165200,9.39341008,233.82,233.74,6.73341008]
[1732071165991,2.484,233.85,233.74,6.73341008]
[1732071166190,20.84404001,233.84,233.76,6.73341008]
[1732071166390,2.66,233.84,233.76,6.73341008]
[1732071167290,2.66,233.84,233.7,2.66]
[1732071167291,2.66,233.84,233.78,6.73341008]
[1732071167991,2.1354,233.8,233.78,6.73341008]
[1732071170488,2.1356,233.79,233.76,6.73341008]
[1732071171089,2.1356,233.79,233.72,2.5164]
[1732071171090,6.73341008,233.81,233.72,2.5164]
[1732071171292,2.17303995,233.83,233.75,6.73341008]
[1732071171494,8.90645003,233.83,233.75,6.73341008]
[1732071171803,6.73341008,233.83,233.75,6.73341008]
[1732071172199,2.1355,233.8,233.75,6.73341008]
[1732071172398,8.16935194,233.82,233.77,6.73341008]
[1732071172600,2.66,233.84,233.77,6.73341008]
[1732071172801,2.1353,233.82,233.79,6.73341008]
[1732071177302,2.1359,233.76,233.72,6.73341008]
[1732071177602,2.1359,233.76,233.74,6.73341008]
[1732071180895,2.64,233.81,233.74,6.73341008]
[1732071181096,2.1355,233.8,233.78,6.73341008]
[1732071182000,2.1357,233.78,233.7,2.1363]
[1732071182200,9.37341008,233.81,233.69,2.4217]
[1732071182506,9.37341008,233.81,233.76,6.73341008]
[1732071182507,2.64,233.81,233.76,6.73341008]
[1732071182699,2.1355,233.8,233.76,6.73341008]
[1732071182896,2.64,233.81,233.74,6.73341008]
[1732071183502,2.1355,233.79,233.74,6.73341008]
[1732071183703,6.73341008,233.8,233.71,6.73341008]
[1732071184098,2.1356,233.78,233.75,6.73341008]
[1732071184895,6.73341008,233.8,233.69,2.4217]
[1732071185099,6.73341008,233.8,233.71,6.73341008]
[1732071186796,2.1361,233.73,233.69,2.4217]
[1732071187020,6.73341008,233.78,233.7,6.73341008]
[1732071187307,6.73341008,233.78,233.69,2.4217]
[1732071187605,6.73341008,233.78,233.69,1.2131]
[1732071189498,6.73341008,233.76,233.69,1.2131]
[1732071190109,2.1362,233.72,233.69,7.94651008]
[1732071190711,2.5233,233.8,233.71,6.73341008]
[1732071190907,1.2784,233.8,233.73,6.73341008]
[1732071191307,9.45928945,233.8,233.73,6.73341008]
[1732071192202,2.1358,233.76,233.73,6.73341008]
[1732071192608,2.11463654,233.87,233.75,6.73341008]
[1732071192910,18.23551433,233.87,233.78,6.73341008]
[1732071193111,18.23551433,233.87,233.69,1.2131]
[1732071193112,8.18501959,233.86,233.8,6.73341008]
[1732071193304,2.64,233.87,233.8,6.73341008]
[1732071193503,8.1816565,233.86,233.8,6.73341008]
[1732071193704,3.9418,233.88,233.8,6.73341008]
[1732071193903,8.18204146,233.87,233.76,2.1357]
[1732071194205,3.9418,233.88,233.8,6.73341008]
[1732071194603,1.2423,233.89,233.84,6.73341008]
[1732071195203,2.1349,233.86,233.84,6.73341008]
[1732071195808,2.1351,233.84,233.82,6.73341008]
[1732071196004,8.1832627,233.86,233.78,1.2842]
[1732071196201,8.1832627,233.85,233.8,6.73341008]
[1732071196408,6.73341008,233.88,233.8,6.73341008]
[1732071196709,18.23497355,233.87,233.8,6.73341008]
[1732071196904,18.23497355,233.86,233.8,6.73341008]
[1732071197100,2.1352,233.83,233.8,6.73341008]
[1732071198804,2.1351,233.85,233.82,6.73341008]
[1732071199006,18.24345505,233.86,233.78,1.2842]
[1732071199216,2.1352,233.83,233.74,2.5138]
[1732071199411,31.0466758,233.89,233.79,6.73341008]
[1732071199412,8.19128798,233.85,233.79,6.73341008]
[1732071199607,2.64,233.84,233.79,6.73341008]
[1732071199914,40.42008588,233.89,233.81,6.73341008]
[1732071200115,18.25255099,233.88,233.81,6.73341008]
[1732071200313,8.19250202,233.87,233.81,6.73341008]
[1732071200505,8.19250202,233.86,233.81,6.73341008]
[1732071200809,40.42008588,233.89,233.81,6.73341008]
[1732071201005,18.25042751,233.88,233.81,6.73341008]
[1732071201211,2.1351,233.84,233.81,6.73341008]
[1732071201707,2.1349,233.86,233.81,6.73341008]
[1732071201910,8.19196262,233.87,233.81,6.73341008]
[1732071202111,40.42008588,233.89,233.81,6.73341008]
[1732071202307,18.25094566,233.88,233.81,6.73341008]
[1732071202517,8.19136525,233.87,233.81,6.73341008]
[1732071202716,40.42008588,233.89,233.81,6.73341008]
[1732071202916,8.19435503,233.88,233.81,6.73341008]
[1732071203317,2.1351,233.84,233.81,6.73341008]
[1732071203514,33.6866758,233.89,233.81,6.73341008]